fUSD/lending_fUSD_20250309
["ID","MTS","AMOUNT","RATE_DAILY","PERIOD"]
[355703317,1741481809100,-500.0,9.894e-05,2]
[355703318,1741481809123,-500.0,9.894e-05,2]
[355703319,1741481809147,-500.0,9.894e-05,2]
[355703320,1741481809168,-833.1173,9.9e-05,2]
[355703321,1741481809191,-559.5977,9.9e-05,2]
[355703322,1741481809214,-1000.0,9.9e-05,2]
[355703323,1741481809248,-10476.95391344,9.91e-05,2]
[355703324,1741481809272,-1012.0,9.99e-05,2]
[355703325,1741481809294,-1113.0,9.99e-05,2]
[355703326,1741481809317,-1567.34,9.999e-05,2]
[355703327,1741481809340,-645.98,9.999e-05,2]
[355703328,1741481809364,-500.0,9.999e-05,2]
[355703329,1741481809388,-500.0,9.999e-05,2]
[355703330,1741481809411,-500.0,9.999e-05,2]
[355703331,1741481809434,-898.08,9.999e-05,2]
[355703332,1741481809458,-500.0,9.999e-05,2]
[355703333,1741481809485,-500.0,9.999e-05,2]
[355703334,1741481809509,-500.0,9.999e-05,2]
[355703335,1741481809534,-180.28276443,9.999e-05,2]
[355703390,1741482632108,-562.5,8.219e-05,2]
[355703391,1741482632167,-1259.93,8.219e-05,2]
[355703392,1741482632177,-1000.0,8.964e-05,2]
[355703393,1741482632188,-192.14110148,8.964e-05,2]
[355703394,1741482632197,-300.0,8.966e-05,2]
[355703395,1741482632206,-19876.89,8.967e-05,2]
[355703396,1741482632216,-162.39,9.028e-05,2]
[355703397,1741482632225,-550.0,9.041e-05,2]
[355703398,1741482632235,-400.0,9.2e-05,3]
[355703399,1741482632244,-900.0,9.3e-05,3]
[355703400,1741482632254,-1300.0,9.4e-05,3]
[355703401,1741482632264,-1800.0,9.5e-05,3]
[355703402,1741482632273,-2200.0,9.6e-05,3]
[355703403,1741482632282,-400.0,9.7e-05,3]
[355703404,1741482632291,-1000.0,9.7e-05,2]
[355703405,1741482632301,-150.99,9.791e-05,2]
[355703406,1741482632310,-150.0,9.791e-05,2]
[355703407,1741482632319,-30074.9801,9.792e-05,2]
[355703408,1741482632328,-400.0,9.8e-05,3]
[355703409,1741482632337,-420.0,9.862e-05,2]
[355703410,1741482632346,-500.0,9.892e-05,2]
[355703411,1741482632355,-500.0,9.892e-05,2]
[355703412,1741482632365,-500.0,9.892e-05,2]
[355703413,1741482632374,-500.0,9.892e-05,2]
[355703414,1741482632383,-500.0,9.892e-05,2]
[355703415,1741482632392,-500.0,9.892e-05,2]
[355703416,1741482632402,-500.0,9.892e-05,2]
[355703417,1741482632411,-500.0,9.892e-05,2]
[355703418,1741482632421,-500.0,9.892e-05,2]
[355703419,1741482632430,-500.0,9.892e-05,2]
[355703420,1741482632439,-490.23313041,9.893e-05,2]
[355703421,1741482632449,-500.0,9.893e-05,2]
[355703422,1741482632459,-500.0,9.893e-05,2]
[355703423,1741482632468,-500.0,9.893e-05,2]
[355703424,1741482632477,-500.0,9.893e-05,2]
[355703425,1741482632486,-500.0,9.893e-05,2]
[355703426,1741482632496,-500.0,9.893e-05,2]
[355703427,1741482632505,-500.0,9.893e-05,2]
[355703428,1741482632515,-500.0,9.893e-05,2]
[355703429,1741482632524,-470.51484332,9.893e-05,2]
[355703430,1741482632533,-500.0,9.893e-05,2]
[355703431,1741482632542,-500.0,9.893e-05,2]
[355703432,1741482632552,-500.0,9.893e-05,2]
[355703433,1741482632561,-500.0,9.893e-05,2]
[355703434,1741482632570,-500.0,9.893e-05,2]
[355703435,1741482632580,-500.0,9.893e-05,2]
[355703437,1741482632590,-500.0,9.893e-05,2]
[355703438,1741482632599,-500.0,9.893e-05,2]
[355703441,1741482632610,-500.0,9.893e-05,2]
[355703442,1741482632621,-500.0,9.893e-05,2]
[355703443,1741482632631,-500.0,9.893e-05,2]
[355703444,1741482632641,-513.72960154,9.893e-05,2]
[355703445,1741482632650,-500.0,9.893e-05,2]
[355703446,1741482632659,-500.0,9.893e-05,2]
[355703447,1741482632668,-500.0,9.893e-05,2]
[355703448,1741482632678,-500.0,9.893e-05,2]
[355703449,1741482632688,-500.0,9.893e-05,2]
[355703450,1741482632697,-500.0,9.893e-05,2]
[355703451,1741482632707,-500.0,9.893e-05,2]
[355703452,1741482632717,-500.0,9.893e-05,2]
[355703453,1741482632728,-500.0,9.893e-05,2]
[355703454,1741482632738,-500.0,9.893e-05,2]
[355703455,1741482632749,-500.0,9.893e-05,2]
[355703456,1741482632758,-500.0,9.893e-05,2]
[355703457,1741482632768,-500.0,9.893e-05,2]
[355703458,1741482632777,-500.0,9.893e-05,2]
[355703459,1741482632786,-500.0,9.893e-05,2]
[355703460,1741482632796,-500.0,9.893e-05,2]
[355703461,1741482632805,-500.0,9.893e-05,2]
[355703462,1741482632814,-500.0,9.893e-05,2]
[355703463,1741482632823,-500.0,9.893e-05,2]
[355703464,1741482632832,-500.0,9.893e-05,2]
[355703465,1741482632842,-500.0,9.893e-05,2]
[355703466,1741482632851,-500.0,9.893e-05,2]
[355703467,1741482632861,-500.0,9.893e-05,2]
[355703468,1741482632871,-500.0,9.893e-05,2]
[355703469,1741482632880,-500.0,9.893e-05,2]
[355703470,1741482632889,-500.0,9.893e-05,2]
[355703471,1741482632898,-241.56574832,9.893e-05,2]
[355703472,1741482632908,-500.0,9.893e-05,2]
[355703473,1741482632917,-500.0,9.893e-05,2]
[355703474,1741482632927,-500.0,9.893e-05,2]
[355703475,1741482632937,-500.0,9.893e-05,2]
[355703476,1741482632949,-500.0,9.893e-05,2]
[355703477,1741482632961,-504.94641509,9.893e-05,2]
[355703478,1741482632975,-500.0,9.893e-05,2]
[355703479,1741482632984,-509.82153811,9.893e-05,2]
[355703480,1741482632995,-500.0,9.893e-05,2]
[355703481,1741482633005,-500.0,9.893e-05,2]
[355703482,1741482633015,-500.0,9.893e-05,2]
[355703483,1741482633025,-500.0,9.893e-05,2]
[355703484,1741482633036,-500.0,9.893e-05,2]
[355703485,1741482633045,-500.0,9.893e-05,2]
[355703486,1741482633055,-500.0,9.893e-05,2]
[355703487,1741482633064,-500.0,9.893e-05,2]
[355703488,1741482633073,-500.0,9.893e-05,2]
[355703489,1741482633083,-500.0,9.893e-05,2]
[355703490,1741482633092,-500.0,9.893e-05,2]
[355703491,1741482633102,-500.0,9.893e-05,2]
[355703492,1741482633112,-500.0,9.893e-05,2]
[355703493,1741482633121,-500.0,9.893e-05,2]
[355703494,1741482633131,-191.86752173,9.893e-05,2]
[355703495,1741482633407,-308.13247827,9.893e-05,2]
[355703496,1741482633417,-858.13034814,9.899e-05,2]
[355703497,1741482633429,-141.86965186,9.899e-05,2]
[355703498,1741482633438,-3774.0277,9.9e-05,2]
[355703499,1741482633448,-400.0,9.9e-05,3]
[355703500,1741482633457,-1941.422,9.952e-05,2]
[355703501,1741482633467,-174.363,9.952e-05,2]
[355703502,1741482633477,-1278.0,9.99e-05,2]
[355703503,1741482633487,-2032.0,9.99e-05,2]
[355703504,1741482633496,-641.552,9.99e-05,2]
[355703505,1741482633506,-162.211,9.99e-05,2]
[355703506,1741482633515,-1332.1233137,9.99e-05,2]
[355703507,1741482633527,-126.8766863,9.99e-05,2]
[355703508,1741482633536,-197.77140158,9.99e-05,2]
[355703509,1741482633547,-389.41259842,9.99e-05,2]
[355703510,1741482633557,-631.08739258,9.99e-05,2]
[355703511,1741482633582,-154.91260742,9.99e-05,2]
[355703512,1741482633592,-1325.048,9.99e-05,2]
[355703513,1741482633601,-1430.728,9.99e-05,2]
[355703514,1741482633611,-907.0,9.99e-05,2]
[355703515,1741482633621,-541.0,9.99e-05,2]
[355703516,1741482633631,-4076.0,9.99e-05,2]
[355703517,1741482633640,-150.0,9.99e-05,2]
[355703518,1741482633649,-3931.0,9.99e-05,2]
[355703519,1741482633659,-200.0,9.99e-05,2]
[355703520,1741482633669,-200.0,9.99e-05,2]
[355703521,1741482633678,-200.0,9.99e-05,2]
[355703522,1741482633688,-200.0,9.99e-05,2]
[355703523,1741482633698,-200.0,9.99e-05,2]
[355703524,1741482633708,-200.0,9.99e-05,2]
[355703525,1741482633717,-200.0,9.99e-05,2]
[355703526,1741482633727,-200.0,9.99e-05,2]
[355703527,1741482633985,-1700.78,9.998e-05,2]
[355703528,1741482633995,-500.0,9.998e-05,2]
[355703529,1741482634004,-500.0,9.998e-05,2]
[355703530,1741482634014,-708.25,9.998e-05,2]
[355703531,1741482634023,-628.2,9.998e-05,2]
[355703532,1741482634033,-619.06,9.998e-05,2]
[355703533,1741482634042,-500.0,9.998e-05,2]
[355703534,1741482634052,-500.0,9.998e-05,2]
[355703535,1741482634062,-1067.72,9.998e-05,2]
[355703536,1741482634071,-500.0,9.998e-05,2]
[355703537,1741482634081,-500.0,9.998e-05,2]
[355703538,1741482634090,-825.82346408,9.998e-05,2]
[355703539,1741482634103,-34.83653592,9.998e-05,2]
[355703540,1741482634112,-500.0,9.998e-05,2]
[355703541,1741482634122,-731.09,9.998e-05,2]
[355703542,1741482634132,-500.0,9.998e-05,2]
[355703543,1741482634141,-500.0,9.998e-05,2]
[355703544,1741482634151,-816.48,9.998e-05,2]
[355703545,1741482634160,-500.0,9.998e-05,2]
[355703546,1741482634170,-500.0,9.998e-05,2]
[355703547,1741482634180,-991.01,9.998e-05,2]
[355703548,1741482634190,-500.0,9.998e-05,2]
[355703549,1741482634199,-500.0,9.998e-05,2]
[355703550,1741482634209,-1321.21,9.998e-05,2]
[355703551,1741482634218,-2137.33,9.998e-05,2]
[355703552,1741482634227,-500.0,9.998e-05,2]
[355703553,1741482634237,-919.65,9.998e-05,2]
[355703554,1741482634246,-500.0,9.998e-05,2]
[355703555,1741482634255,-948.98,9.998e-05,2]
[355703556,1741482634265,-500.0,9.998e-05,2]
[355703557,1741482634274,-538.78,9.998e-05,2]
[355703558,1741482634283,-500.0,9.998e-05,2]
[355703559,1741482634293,-4061.22,9.998e-05,2]
[355703560,1741482634302,-500.0,9.998e-05,2]
[355703561,1741482634311,-1498.63,9.998e-05,2]
[355703562,1741482634321,-500.0,9.998e-05,2]
[355703563,1741482634330,-500.0,9.998e-05,2]
[355703564,1741482634339,-500.0,9.998e-05,2]
[355703565,1741482634349,-523.99,9.998e-05,2]
[355703566,1741482634358,-500.0,9.998e-05,2]
[355703567,1741482634368,-500.0,9.998e-05,2]
[355703568,1741482634377,-500.0,9.998e-05,2]
[355703569,1741482634386,-3076.27,9.998e-05,2]
[355703570,1741482634396,-500.0,9.998e-05,2]
[355703571,1741482634405,-581.65,9.998e-05,2]
[355703572,1741482634415,-802.96,9.998e-05,2]
[355703573,1741482634425,-500.0,9.998e-05,2]
[355703574,1741482634434,-745.02,9.998e-05,2]
[355703575,1741482634443,-500.0,9.998e-05,2]
[355703576,1741482634452,-500.0,9.998e-05,2]
[355703577,1741482634462,-500.0,9.998e-05,2]
[355703578,1741482634471,-500.0,9.998e-05,2]
[355703579,1741482634481,-1661.246855,9.999e-05,2]
[355703580,1741482634490,-2236.944332,9.999e-05,2]
[355703581,1741482634499,-184.269334,9.999e-05,2]
[355703582,1741482634510,-166.529609,9.999e-05,2]
[355703583,1741482634519,-200.0,9.999e-05,2]
[355703584,1741482634529,-500.0,9.999e-05,2]
[355703585,1741482634538,-500.0,9.999e-05,2]
[355703586,1741482634547,-500.0,9.999e-05,2]
[355703587,1741482634556,-500.0,9.999e-05,2]
[355703588,1741482634566,-500.0,9.999e-05,2]
[355703589,1741482634575,-500.0,9.999e-05,2]
[355703590,1741482634585,-500.0,9.999e-05,2]
[355703591,1741482634595,-500.0,9.999e-05,2]
[355703592,1741482634604,-500.0,9.999e-05,2]
[355703593,1741482634614,-500.0,9.999e-05,2]
[355703594,1741482634624,-500.0,9.999e-05,2]
[355703595,1741482634633,-500.0,9.999e-05,2]
[355703596,1741482634643,-500.0,9.999e-05,2]
[355703597,1741482634652,-355.92929767,9.999e-05,2]
[355703598,1741482634665,-144.07070233,9.999e-05,2]
[355703599,1741482634674,-500.0,9.999e-05,2]
[355703600,1741482634684,-509.14073422,9.999e-05,2]
[355703601,1741482634694,-291.69871951,9.999e-05,2]
[355703602,1741482634703,-500.0,9.999e-05,2]
[355703603,1741482634714,-500.0,9.999e-05,2]
[355703604,1741482634723,-500.0,9.999e-05,2]
[355703605,1741482634734,-500.0,9.999e-05,2]
[355703606,1741482634744,-500.0,9.999e-05,2]
[355703607,1741482634753,-500.0,9.999e-05,2]
[355703608,1741482634763,-262.69730231,9.999e-05,2]
[355703609,1741482634773,-500.0,9.999e-05,2]
[355703610,1741482634782,-500.0,9.999e-05,2]
[355703611,1741482634792,-500.0,9.999e-05,2]
[355703612,1741482634801,-500.0,9.999e-05,2]
[355703613,1741482634809,-500.0,9.999e-05,2]
[355703614,1741482634818,-500.0,9.999e-05,2]
[355703615,1741482634827,-500.0,9.999e-05,2]
[355703616,1741482634836,-500.0,9.999e-05,2]
[355703617,1741482634846,-500.0,9.999e-05,2]
[355703618,1741482634855,-500.0,9.999e-05,2]
[355703619,1741482634865,-500.0,9.999e-05,2]
[355703620,1741482634875,-500.0,9.999e-05,2]
[355703621,1741482634884,-500.0,9.999e-05,2]
[355703622,1741482634894,-500.0,9.999e-05,2]
[355703623,1741482634904,-500.0,9.999e-05,2]
[355703624,1741482634914,-500.0,9.999e-05,2]
[355703625,1741482634924,-500.0,9.999e-05,2]
[355703626,1741482634933,-500.0,9.999e-05,2]
[355703627,1741482634948,-500.0,9.999e-05,2]
[355703628,1741482634957,-495.22,9.999e-05,2]
[355703629,1741482634966,-500.0,9.999e-05,2]
[355703630,1741482634976,-500.0,9.999e-05,2]
[355703631,1741482634986,-500.0,9.999e-05,2]
[355703632,1741482634995,-500.0,9.999e-05,2]
[355703633,1741482635005,-500.0,9.999e-05,2]
[355703634,1741482635017,-500.0,9.999e-05,2]
[355703635,1741482635026,-500.0,9.999e-05,2]
[355703636,1741482635036,-500.0,9.999e-05,2]
[355703637,1741482635045,-511.86984571,9.999e-05,2]
[355703638,1741482635054,-608.48958699,9.999e-05,2]
[355703639,1741482635064,-505.04931842,9.999e-05,2]
[355703640,1741482635074,-500.0,9.999e-05,2]
[355703641,1741482635083,-527.36295213,9.999e-05,2]
[355703642,1741482635093,-500.0,9.999e-05,2]
[355703643,1741482635102,-500.0,9.999e-05,2]
[355703644,1741482635111,-500.0,9.999e-05,2]
[355703645,1741482635123,-500.0,9.999e-05,2]
[355703646,1741482635134,-500.0,9.999e-05,2]
[355703647,1741482635143,-500.0,9.999e-05,2]
[355703648,1741482635153,-500.0,9.999e-05,2]
[355703649,1741482635163,-500.0,9.999e-05,2]
[355703650,1741482635172,-500.0,9.999e-05,2]
[355703651,1741482635181,-500.0,9.999e-05,2]
[355703652,1741482635191,-500.0,9.999e-05,2]
[355703653,1741482635200,-500.0,9.999e-05,2]
[355703654,1741482635210,-500.0,9.999e-05,2]
[355703655,1741482635219,-500.0,9.999e-05,2]
[355703656,1741482635229,-500.0,9.999e-05,2]
[355703657,1741482635238,-500.0,9.999e-05,2]
[355703658,1741482635248,-500.0,9.999e-05,2]
[355703659,1741482635257,-500.0,9.999e-05,2]
[355703660,1741482635266,-500.0,9.999e-05,2]
[355703661,1741482635275,-500.0,9.999e-05,2]
[355703662,1741482635284,-500.0,9.999e-05,2]
[355703663,1741482635293,-1525.96,9.999e-05,2]
[355703664,1741482635303,-500.0,9.999e-05,2]
[355703665,1741482635312,-500.0,9.999e-05,2]
[355703666,1741482635321,-500.0,9.999e-05,2]
[355703667,1741482635330,-500.0,9.999e-05,2]
[355703668,1741482635339,-193.07858422,9.999e-05,2]
[355703669,1741482635353,-500.0,9.999e-05,2]
[355703670,1741482635363,-500.0,9.999e-05,2]
[355703671,1741482635371,-513.17762687,9.999e-05,2]
[355703672,1741482635381,-500.0,9.999e-05,2]
[355703673,1741482635390,-420.02120376,9.999e-05,2]
[355703674,1741482635399,-500.0,9.999e-05,2]
[355703675,1741482635409,-500.0,9.999e-05,2]
[355703676,1741482635418,-500.0,9.999e-05,2]
[355703677,1741482635427,-500.0,9.999e-05,2]
[355703678,1741482635436,-348.69,9.999e-05,2]
[355703679,1741482635446,-500.0,9.999e-05,2]
[355703680,1741482635455,-500.0,9.999e-05,2]
[355703681,1741482635464,-500.0,9.999e-05,2]
[355703682,1741482635476,-500.0,9.999e-05,2]
[355703683,1741482635486,-500.0,9.999e-05,2]
[355703684,1741482635496,-218.59879616,9.999e-05,2]
[355703690,1741482638182,-200.0,9.99e-05,2]
[355703691,1741482638193,-743.35,9.998e-05,2]
[355703692,1741482638203,-281.40120384,9.999e-05,2]
[355703693,1741482638212,-500.0,9.999e-05,2]
[355703694,1741482638222,-500.0,9.999e-05,2]
[355703695,1741482638231,-500.0,9.999e-05,2]
[355703696,1741482638241,-500.0,9.999e-05,2]
[355703697,1741482638250,-500.0,9.999e-05,2]
[355703698,1741482638260,-500.0,9.999e-05,2]
[355703699,1741482638269,-75.24879616,9.999e-05,2]
[355703700,1741482638299,-429.22823715,9.999e-05,2]
[355703701,1741482638308,-500.0,9.999e-05,2]
[355703702,1741482638317,-500.0,9.999e-05,2]
[355703703,1741482638326,-361.93860409,9.999e-05,2]
[355703704,1741482638336,-500.0,9.999e-05,2]
[355703705,1741482638346,-210.47907666,9.999e-05,2]
[355703706,1741482638357,-305.40109656,9.999e-05,2]
[355703707,1741482638368,-500.0,9.999e-05,2]
[355703708,1741482638378,-73.63446697,9.999e-05,2]
[355703709,1741482638390,-426.36553303,9.999e-05,2]
[355703710,1741482638400,-500.0,9.999e-05,2]
[355703711,1741482638409,-500.0,9.999e-05,2]
[355703712,1741482638419,-500.0,9.999e-05,2]
[355703713,1741482638428,-500.0,9.999e-05,2]
[355703714,1741482638437,-500.0,9.999e-05,2]
[355703715,1741482638447,-86.02446697,9.999e-05,2]
[355703716,1741482638466,-413.97553303,9.999e-05,2]
[355703717,1741482638475,-25.23274187,9.999e-05,2]
[355703718,1741482638486,-537.32107681,9.999e-05,2]
[355703719,1741482638495,-325.38786151,9.999e-05,2]
[355703795,1741482640254,-500.0,9.998e-05,2]
[355703796,1741482640264,-1629.91,9.998e-05,2]
[355703797,1741482640274,-174.61213849,9.999e-05,2]
[355703798,1741482640283,-508.73827362,9.999e-05,2]
[355703799,1741482640300,-500.0,9.999e-05,2]
[355703800,1741482640310,-500.0,9.999e-05,2]
[355703801,1741482640320,-500.0,9.999e-05,2]
[355703802,1741482640331,-500.0,9.999e-05,2]
[355703803,1741482640341,-504.25302305,9.999e-05,2]
[355703804,1741482640351,-500.0,9.999e-05,2]
[355703805,1741482640361,-500.0,9.999e-05,2]
[355703806,1741482640371,-500.0,9.999e-05,2]
[355703807,1741482640380,-500.0,9.999e-05,2]
[355703808,1741482640390,-500.0,9.999e-05,2]
[355703809,1741482640400,-500.0,9.999e-05,2]
[355703810,1741482640410,-500.0,9.999e-05,2]
[355703811,1741482640419,-500.0,9.999e-05,2]
[355703812,1741482640429,-500.0,9.999e-05,2]
[355703813,1741482640438,-500.0,9.999e-05,2]
[355703814,1741482640448,-534.88070405,9.999e-05,2]
[355703815,1741482640457,-500.0,9.999e-05,2]
[355703816,1741482640467,-500.0,9.999e-05,2]
[355703817,1741482640476,-500.0,9.999e-05,2]
[355703818,1741482640486,-500.0,9.999e-05,2]
[355703819,1741482640495,-635.13303819,9.999e-05,2]
[355703820,1741482640505,-500.95420401,9.999e-05,2]
[355703821,1741482640514,-457.94617232,9.999e-05,2]
[355703822,1741482640524,-500.0,9.999e-05,2]
[355703823,1741482640534,-500.0,9.999e-05,2]
[355703824,1741482640543,-500.0,9.999e-05,2]
[355703825,1741482640553,-214.81906392,9.999e-05,2]
[355703826,1741482640565,-500.0,9.999e-05,2]
[355703827,1741482640575,-500.0,9.999e-05,2]
[355703828,1741482640585,-500.0,9.999e-05,2]
[355703829,1741482640595,-500.0,9.999e-05,2]
[355703830,1741482640604,-500.0,9.999e-05,2]
[355703831,1741482640614,-500.0,9.999e-05,2]
[355703832,1741482640624,-500.0,9.999e-05,2]
[355703833,1741482640633,-500.0,9.999e-05,2]
[355703834,1741482640643,-500.0,9.999e-05,2]
[355703835,1741482640653,-500.0,9.999e-05,2]
[355703836,1741482640663,-219.31304598,9.999e-05,2]
[355703837,1741482640672,-500.0,9.999e-05,2]
[355703838,1741482640682,-500.0,9.999e-05,2]
[355703839,1741482640692,-500.0,9.999e-05,2]
[355703840,1741482640702,-500.0,9.999e-05,2]
[355703841,1741482640711,-500.0,9.999e-05,2]
[355703842,1741482640721,-500.0,9.999e-05,2]
[355703843,1741482640731,-500.0,9.999e-05,2]
[355703844,1741482640740,-500.0,9.999e-05,2]
[355703845,1741482640750,-500.0,9.999e-05,2]
[355703846,1741482640760,-500.0,9.999e-05,2]
[355703847,1741482640770,-500.0,9.999e-05,2]
[355703848,1741482640779,-500.0,9.999e-05,2]
[355703850,1741482640789,-509.42332931,9.999e-05,2]
[355703852,1741482640799,-500.0,9.999e-05,2]
[355703854,1741482640808,-500.0,9.999e-05,2]
[355703856,1741482640818,-500.0,9.999e-05,2]
[355703858,1741482640827,-500.0,9.999e-05,2]
[355703859,1741482640837,-500.0,9.999e-05,2]
[355703860,1741482640846,-500.0,9.999e-05,2]
[355703861,1741482640855,-500.0,9.999e-05,2]
[355703862,1741482640865,-500.0,9.999e-05,2]
[355703863,1741482640874,-500.0,9.999e-05,2]
[355703864,1741482640885,-500.0,9.999e-05,2]
[355703865,1741482640893,-500.0,9.999e-05,2]
[355703866,1741482640903,-500.0,9.999e-05,2]
[355703867,1741482640916,-574.23320188,9.999e-05,2]
[355703868,1741482640926,-500.0,9.999e-05,2]
[355703869,1741482640936,-500.0,9.999e-05,2]
[355703870,1741482640950,-500.0,9.999e-05,2]
[355703871,1741482640961,-500.0,9.999e-05,2]
[355703872,1741482640971,-500.0,9.999e-05,2]
[355703873,1741482640981,-500.0,9.999e-05,2]
[355703874,1741482640992,-500.0,9.999e-05,2]
[355703875,1741482641001,-500.0,9.999e-05,2]
[355703876,1741482641010,-500.0,9.999e-05,2]
[355703877,1741482641021,-500.0,9.999e-05,2]
[355703878,1741482641031,-500.0,9.999e-05,2]
[355703879,1741482641040,-500.0,9.999e-05,2]
[355703880,1741482641050,-500.0,9.999e-05,2]
[355703881,1741482641059,-500.0,9.999e-05,2]
[355703882,1741482641069,-500.0,9.999e-05,2]
[355703883,1741482641078,-335.93739304,9.999e-05,2]
[355703884,1741482641088,-744.02,9.999e-05,2]
[355703885,1741482641099,-500.0,9.999e-05,2]
[355703886,1741482641108,-500.0,9.999e-05,2]
[355703887,1741482641118,-501.15,9.999e-05,2]
[355703888,1741482641127,-500.0,9.999e-05,2]
[355703889,1741482641137,-500.0,9.999e-05,2]
[355703890,1741482641147,-500.0,9.999e-05,2]
[355703891,1741482641157,-500.0,9.999e-05,2]
[355703892,1741482641168,-500.0,9.999e-05,2]
[355703893,1741482641179,-500.0,9.999e-05,2]
[355703895,1741482641190,-202.4989943,9.999e-05,2]
[355703896,1741482641199,-500.0,9.999e-05,2]
[355703897,1741482641209,-500.0,9.999e-05,2]
[355703898,1741482641220,-324.2511183,9.999e-05,2]
[355703899,1741482641230,-500.0,9.999e-05,2]
[355703900,1741482641241,-500.0,9.999e-05,2]
[355703901,1741482641252,-500.0,9.999e-05,2]
[355703902,1741482641262,-500.0,9.999e-05,2]
[355703903,1741482641274,-500.0,9.999e-05,2]
[355703904,1741482641285,-500.0,9.999e-05,2]
[355703905,1741482641295,-500.0,9.999e-05,2]
[355703906,1741482641305,-512.28570555,9.999e-05,2]
[355703907,1741482641315,-500.0,9.999e-05,2]
[355703908,1741482641324,-500.0,9.999e-05,2]
[355703909,1741482641333,-500.0,9.999e-05,2]
[355703910,1741482641343,-500.0,9.999e-05,2]
[355703911,1741482641629,-200.0,9.999e-05,2]
[355703912,1741482641642,-598.6080595,9.999e-05,2]
[355703913,1741482641652,-500.0,9.999e-05,2]
[355703914,1741482641663,-500.0,9.999e-05,2]
[355703915,1741482641673,-500.0,9.999e-05,2]
[355703916,1741482641683,-518.69096026,9.999e-05,2]
[355703917,1741482641693,-500.0,9.999e-05,2]
[355703918,1741482641702,-500.0,9.999e-05,2]
[355703919,1741482641711,-548.54,9.999e-05,2]
[355703920,1741482641721,-500.0,9.999e-05,2]
[355703921,1741482641730,-638.36,9.999e-05,2]
[355703922,1741482641739,-312.95921306,9.999e-05,2]
[355703923,1741482641748,-500.0,9.999e-05,2]
[355703924,1741482641758,-348.16467998,9.999e-05,2]
[355703925,1741482641767,-500.0,9.999e-05,2]
[355703926,1741482641777,-500.0,9.999e-05,2]
[355703927,1741482641786,-500.0,9.999e-05,2]
[355703928,1741482641796,-500.0,9.999e-05,2]
[355703929,1741482641804,-500.0,9.999e-05,2]
[355703930,1741482641812,-197.10979141,9.999e-05,2]
[355703931,1741482641822,-500.0,9.999e-05,2]
[355703932,1741482641831,-500.0,9.999e-05,2]
[355703933,1741482641840,-500.0,9.999e-05,2]
[355703934,1741482641850,-500.0,9.999e-05,2]
[355703935,1741482641859,-500.0,9.999e-05,2]
[355703936,1741482641869,-500.0,9.999e-05,2]
[355703937,1741482641878,-443.61935351,9.999e-05,2]
[355703938,1741482641887,-500.0,9.999e-05,2]
[355703939,1741482641897,-500.0,9.999e-05,2]
[355703940,1741482641906,-500.0,9.999e-05,2]
[355703941,1741482641915,-500.0,9.999e-05,2]
[355703942,1741482641924,-500.0,9.999e-05,2]
[355703943,1741482641933,-500.0,9.999e-05,2]
[355703944,1741482641946,-500.0,9.999e-05,2]
[355703945,1741482641955,-500.0,9.999e-05,2]
[355703946,1741482641965,-500.0,9.999e-05,2]
[355703947,1741482641974,-752.42,9.999e-05,2]
[355703948,1741482641984,-500.0,9.999e-05,2]
[355703949,1741482641996,-1677.92,9.999e-05,2]
[355703950,1741482642006,-500.0,9.999e-05,2]
[355703951,1741482642017,-500.0,9.999e-05,2]
[355703952,1741482642028,-500.0,9.999e-05,2]
[355703953,1741482642039,-500.0,9.999e-05,2]
[355703954,1741482642049,-166.97700755,9.999e-05,2]
[355703955,1741482642058,-500.0,9.999e-05,2]
[355703956,1741482642067,-505.27,9.999e-05,2]
[355703957,1741482642076,-500.0,9.999e-05,2]
[355703958,1741482642086,-500.0,9.999e-05,2]
[355703959,1741482642095,-523.97,9.999e-05,2]